[Event "*** Titled Tuesday Blitz"]
[Site "Chess.com"]
[Date "2020.05.05"]
[Round "1"]
[White "barbara25"]
[Black "stoleriu"]
[Result "0-1"]
[WhiteElo "2218"]
[BlackElo "2561"]
[TimeControl "180+1"]
[EndTime "10:06:20 PDT"]
[Termination "stoleriu won by resignation"]

1. e4 {[%clk 0:03:00.9]} 1... e6 {[%clk 0:03:00.1]} 2. d4 {[%clk 0:03:00.2]}
2... d5 {[%clk 0:02:58.7]} 3. Nc3 {[%clk 0:02:59.5]} 3... Bb4 {[%clk 0:02:57.8]}
4. e5 {[%clk 0:02:58.8]} 4... c5 {[%clk 0:02:57.7]} 5. a3 {[%clk 0:02:58.6]}
5... Bxc3+ {[%clk 0:02:55.1]} 6. bxc3 {[%clk 0:02:57.5]} 6... Qc7 {[%clk
0:02:56]} 7. Nf3 {[%clk 0:02:50.3]} 7... Ne7 {[%clk 0:02:55.4]} 8. Bd2 {[%clk
0:02:48.7]} 8... b6 {[%clk 0:02:54.4]} 9. Bb5+ {[%clk 0:02:45.5]} 9... Bd7
{[%clk 0:02:54.6]} 10. Bxd7+ {[%clk 0:02:41.8]} 10... Nxd7 {[%clk 0:02:52.7]}
11. a4 {[%clk 0:02:42.1]} 11... Nc6 {[%clk 0:02:50.6]} 12. O-O {[%clk
0:02:41.3]} 12... h6 {[%clk 0:02:50.8]} 13. Be3 {[%clk 0:02:33.3]} 13... Na5
{[%clk 0:02:50.5]} 14. Nd2 {[%clk 0:02:32]} 14... Rc8 {[%clk 0:02:49.5]} 15. Ra2
{[%clk 0:02:29.4]} 15... cxd4 {[%clk 0:02:44.6]} 16. cxd4 {[%clk 0:02:24.4]}
16... Nc4 {[%clk 0:02:44.5]} 17. Nxc4 {[%clk 0:02:24.3]} 17... Qxc4 {[%clk
0:02:45.4]} 18. Qa1 {[%clk 0:02:23.3]} 18... O-O {[%clk 0:02:41.7]} 19. a5
{[%clk 0:02:22.9]} 19... b5 {[%clk 0:02:41.2]} 20. f4 {[%clk 0:02:17.4]} 20...
f5 {[%clk 0:02:39.5]} 21. Rf3 {[%clk 0:02:15.4]} 21... a6 {[%clk 0:02:38.5]} 22.
Rg3 {[%clk 0:02:13.2]} 22... Nb8 {[%clk 0:02:38]} 23. Bf2 {[%clk 0:02:12.2]}
23... Rf7 {[%clk 0:02:23.1]} 24. c3 {[%clk 0:02:10.9]} 24... Rfc7 {[%clk
0:02:16.1]} 25. h4 {[%clk 0:02:10.5]} 25... b4 {[%clk 0:01:48]} 26. cxb4 {[%clk
0:02:04]} 26... Qxb4 {[%clk 0:01:48.9]} 27. Kh2 {[%clk 0:02:02.6]} 27... Rc1
{[%clk 0:01:48.4]} 28. Qb2 {[%clk 0:02:02.6]} 28... Qc4 {[%clk 0:01:44.4]} 29.
Qe2 {[%clk 0:01:44.1]} 29... Nc6 {[%clk 0:01:24.2]} 30. Qh5 {[%clk 0:00:35.4]}
30... Qf1 {[%clk 0:00:40]} 31. Rg6 {[%clk 0:00:32.9]} 31... Qh1+ {[%clk
0:00:36.3]} 32. Kg3 {[%clk 0:00:32.6]} 32... Rc3+ {[%clk 0:00:36.7]} 0-1

[Event "*** Titled Tuesday Blitz"]
[Site "Chess.com"]
[Date "2020.05.05"]
[Round "1"]
[White "Zkid"]
[Black "THE_PLAYER6"]
[Result "1-0"]
[WhiteElo "2807"]
[BlackElo "2418"]
[TimeControl "180+1"]
[EndTime "10:06:21 PDT"]
[Termination "Zkid won by resignation"]

1. c4 {[%clk 0:03:00.8]} 1... e6 {[%clk 0:02:59.8]} 2. g3 {[%clk 0:03:00.5]}
2... d5 {[%clk 0:02:59.8]} 3. Nf3 {[%clk 0:03:01.1]} 3... Nf6 {[%clk 0:02:58.1]}
4. Bg2 {[%clk 0:03:01.2]} 4... Be7 {[%clk 0:02:58]} 5. O-O {[%clk 0:03:01.4]}
5... O-O {[%clk 0:02:57.8]} 6. b3 {[%clk 0:03:01.7]} 6... d4 {[%clk 0:02:55.5]}
7. e3 {[%clk 0:02:58.8]} 7... c5 {[%clk 0:02:55.6]} 8. exd4 {[%clk 0:02:58.4]}
8... cxd4 {[%clk 0:02:56.5]} 9. Ne5 {[%clk 0:02:58.8]} 9... Nbd7 {[%clk
0:02:52.5]} 10. Nxd7 {[%clk 0:02:54.5]} 10... Nxd7 {[%clk 0:02:53.4]} 11. d3
{[%clk 0:02:50.3]} 11... Qc7 {[%clk 0:02:46.6]} 12. Re1 {[%clk 0:02:45.3]} 12...
e5 {[%clk 0:02:42.6]} 13. Nd2 {[%clk 0:02:40.2]} 13... a5 {[%clk 0:02:37.9]} 14.
Nf3 {[%clk 0:02:33.4]} 14... f6 {[%clk 0:02:32.8]} 15. Nxd4 {[%clk 0:02:28.1]}
15... Bb4 {[%clk 0:01:38.8]} 16. Ne6 {[%clk 0:02:19.2]} 16... Qd6 {[%clk
0:01:32.8]} 17. Nxf8 {[%clk 0:02:09.2]} 17... Bxe1 {[%clk 0:01:32.4]} 18. Nxd7
{[%clk 0:02:04.8]} 18... Bc3 {[%clk 0:01:20.3]} 19. Bd5+ {[%clk 0:01:23.2]}
19... Kh8 {[%clk 0:01:14.2]} 20. Nxf6 {[%clk 0:01:23.3]} 20... Qxf6 {[%clk
0:00:59.8]} 21. Rb1 {[%clk 0:01:23]} 21... Bf5 {[%clk 0:00:34.8]} 22. Bd2 {[%clk
0:01:03.2]} 22... Bd4 {[%clk 0:00:32]} 23. Qf3 {[%clk 0:00:59.6]} 23... Rf8
{[%clk 0:00:18.4]} 24. Be3 {[%clk 0:00:37.1]} 24... Bxd3 {[%clk 0:00:16.5]} 25.
Qxf6 {[%clk 0:00:36.5]} 25... Rxf6 {[%clk 0:00:15.4]} 26. Rd1 {[%clk 0:00:36.1]}
26... Bxe3 {[%clk 0:00:14.7]} 27. fxe3 {[%clk 0:00:36.2]} 27... e4 {[%clk
0:00:15.2]} 28. Bxe4 {[%clk 0:00:36.3]} 1-0

[Event "*** Titled Tuesday Blitz"]
[Site "Chess.com"]
[Date "2020.05.05"]
[Round "1"]
[White "Macron20hTF1"]
[Black "AVolodin"]
[Result "0-1"]
[WhiteElo "2346"]
[BlackElo "2682"]
[TimeControl "180+1"]
[EndTime "10:06:23 PDT"]
[Termination "AVolodin won by checkmate"]

1. f4 {[%clk 0:03:00.8]} 1... d5 {[%clk 0:02:56.4]} 2. Nf3 {[%clk 0:03:01]} 2...
c5 {[%clk 0:02:56.8]} 3. g3 {[%clk 0:03:01.3]} 3... a6 {[%clk 0:02:57.2]} 4. Bg2
{[%clk 0:03:01.6]} 4... Nc6 {[%clk 0:02:57.8]} 5. d3 {[%clk 0:03:01.8]} 5... g6
{[%clk 0:02:58.3]} 6. O-O {[%clk 0:03:01.4]} 6... Bg7 {[%clk 0:02:58.6]} 7. e4
{[%clk 0:03:02]} 7... Nh6 {[%clk 0:02:55.3]} 8. c3 {[%clk 0:02:59.7]} 8... O-O
{[%clk 0:02:54.4]} 9. exd5 {[%clk 0:02:47.6]} 9... Qxd5 {[%clk 0:02:46.8]} 10.
Ne5 {[%clk 0:02:47.7]} 10... Qd6 {[%clk 0:02:43.1]} 11. Nxc6 {[%clk 0:02:47.9]}
11... bxc6 {[%clk 0:02:43]} 12. Qe2 {[%clk 0:02:31.1]} 12... Bg4 {[%clk
0:02:37]} 13. Qf2 {[%clk 0:02:17.6]} 13... Qxd3 {[%clk 0:02:31.7]} 14. Be3
{[%clk 0:01:49.6]} 14... Rab8 {[%clk 0:02:17.9]} 15. Na3 {[%clk 0:01:42.1]}
15... Rxb2 {[%clk 0:01:55.5]} 16. Qxb2 {[%clk 0:01:43]} 16... Qxe3+ {[%clk
0:01:52.8]} 17. Kh1 {[%clk 0:01:34.8]} 17... Bxc3 {[%clk 0:01:47.4]} 18. Qb3
{[%clk 0:00:38.7]} 18... Be6 {[%clk 0:01:44.5]} 19. Nc4 {[%clk 0:00:38.9]} 19...
Bxc4 {[%clk 0:01:44.5]} 20. Qxc4 {[%clk 0:00:37.8]} 20... Bxa1 {[%clk
0:01:44.6]} 21. Rxa1 {[%clk 0:00:36.6]} 21... Qd4 {[%clk 0:01:43.9]} 22. Rc1
{[%clk 0:00:33.1]} 22... Ng4 {[%clk 0:01:41.8]} 23. Qxc5 {[%clk 0:00:20.5]}
23... Qxc5 {[%clk 0:01:19.8]} 24. Rxc5 {[%clk 0:00:21.4]} 24... Rd8 {[%clk
0:01:20]} 25. Bf3 {[%clk 0:00:18.9]} 25... Nf2+ {[%clk 0:01:02.3]} 26. Kg2
{[%clk 0:00:18.3]} 26... Rd2 {[%clk 0:01:03.2]} 27. Rxc6 {[%clk 0:00:14.7]}
27... Rxa2 {[%clk 0:01:02.3]} 28. Rc8+ {[%clk 0:00:10.6]} 28... Kg7 {[%clk
0:01:02.2]} 29. Ra8 {[%clk 0:00:10.6]} 29... Ng4+ {[%clk 0:00:55]} 30. Kh3
{[%clk 0:00:10.6]} 30... Rxh2+ {[%clk 0:00:49.9]} 31. Kxg4 {[%clk 0:00:08.7]}
31... h5+ {[%clk 0:00:50.5]} 32. Kg5 {[%clk 0:00:07.3]} 32... f6# {[%clk
0:00:51.1]} 0-1

[Event "*** Titled Tuesday Blitz"]
[Site "Chess.com"]
[Date "2020.05.05"]
[Round "1"]
[White "shnitez"]
[Black "Juanovic"]
[Result "1-0"]
[WhiteElo "2528"]
[BlackElo "2166"]
[TimeControl "180+1"]
[EndTime "10:06:23 PDT"]
[Termination "shnitez won on time"]

1. e4 {[%clk 0:02:59.6]} 1... c5 {[%clk 0:03:00.1]} 2. Nf3 {[%clk 0:02:58.8]}
2... Nc6 {[%clk 0:03:00.3]} 3. Bb5 {[%clk 0:02:58]} 3... Nd4 {[%clk 0:03:00.2]}
4. Nxd4 {[%clk 0:02:57.2]} 4... cxd4 {[%clk 0:03:01.1]} 5. O-O {[%clk
0:02:56.8]} 5... a6 {[%clk 0:03:01.7]} 6. Bc4 {[%clk 0:02:56.2]} 6... e6 {[%clk
0:03:02.3]} 7. d3 {[%clk 0:02:55.9]} 7... Ne7 {[%clk 0:03:02.6]} 8. Nd2 {[%clk
0:02:48.9]} 8... Nc6 {[%clk 0:03:02.5]} 9. a3 {[%clk 0:02:44.1]} 9... b5 {[%clk
0:03:01.9]} 10. Ba2 {[%clk 0:02:42]} 10... Be7 {[%clk 0:03:02.5]} 11. Qg4 {[%clk
0:02:38.6]} 11... O-O {[%clk 0:02:30.1]} 12. f4 {[%clk 0:02:33.9]} 12... f5
{[%clk 0:02:27.9]} 13. exf5 {[%clk 0:02:33.1]} 13... Kh8 {[%clk 0:02:13.5]} 14.
fxe6 {[%clk 0:02:28.7]} 14... dxe6 {[%clk 0:02:12.1]} 15. Ne4 {[%clk 0:02:16.2]}
15... e5 {[%clk 0:02:06]} 16. f5 {[%clk 0:02:15.2]} 16... Qe8 {[%clk 0:01:45.1]}
17. Bg5 {[%clk 0:02:03.5]} 17... g6 {[%clk 0:00:57.3]} 18. Be6 {[%clk
0:01:38.3]} 18... gxf5 {[%clk 0:00:38.8]} 19. Bxf5 {[%clk 0:01:37.9]} 19... Bxf5
{[%clk 0:00:35.4]} 20. Rxf5 {[%clk 0:01:37.6]} 20... Qg6 {[%clk 0:00:30.9]} 21.
Raf1 {[%clk 0:01:31.9]} 21... Rxf5 {[%clk 0:00:29.8]} 22. Qxf5 {[%clk
0:01:30.9]} 22... Qxf5 {[%clk 0:00:23]} 23. Rxf5 {[%clk 0:01:31.8]} 23... Bxg5
{[%clk 0:00:21.7]} 24. Nxg5 {[%clk 0:01:21.5]} 24... Rc8 {[%clk 0:00:17.8]} 25.
Rf7 {[%clk 0:01:10.2]} 25... h6 {[%clk 0:00:17.1]} 26. Ne4 {[%clk 0:01:09.6]}
26... Nd8 {[%clk 0:00:13.4]} 27. Rd7 {[%clk 0:01:07.4]} 27... Ne6 {[%clk
0:00:11.5]} 28. Nf6 {[%clk 0:01:01.8]} 28... Nf8 {[%clk 0:00:09.7]} 29. Rf7
{[%clk 0:00:59.9]} 29... h5 {[%clk 0:00:06.5]} 30. h4 {[%clk 0:00:57.9]} 30...
a5 {[%clk 0:00:06.6]} 31. Kh2 {[%clk 0:00:57.2]} 31... b4 {[%clk 0:00:05.6]} 32.
axb4 {[%clk 0:00:56.7]} 32... axb4 {[%clk 0:00:06.5]} 33. Kg3 {[%clk 0:00:56.4]}
1-0

[Event "*** Titled Tuesday Blitz"]
[Site "Chess.com"]
[Date "2020.05.05"]
[Round "1"]
[White "Vamostodorecto"]
[Black "AlanZhang"]
[Result "1-0"]
[WhiteElo "2532"]
[BlackElo "2183"]
[TimeControl "180+1"]
[EndTime "10:06:25 PDT"]
[Termination "Vamostodorecto won on time"]

1. d4 {[%clk 0:03:00.9]} 1... Nf6 {[%clk 0:02:58.8]} 2. c4 {[%clk 0:03:00.7]}
2... e6 {[%clk 0:02:57.3]} 3. Nc3 {[%clk 0:03:01.1]} 3... d5 {[%clk 0:02:56.2]}
4. cxd5 {[%clk 0:02:59.8]} 4... exd5 {[%clk 0:02:55.9]} 5. Bg5 {[%clk
0:02:59.9]} 5... c6 {[%clk 0:02:56.3]} 6. Qc2 {[%clk 0:02:58]} 6... Be7 {[%clk
0:02:56.1]} 7. e3 {[%clk 0:02:57.5]} 7... O-O {[%clk 0:02:54.8]} 8. Bd3 {[%clk
0:02:58.1]} 8... Nbd7 {[%clk 0:02:52.7]} 9. Nge2 {[%clk 0:02:58.2]} 9... Re8
{[%clk 0:02:52.8]} 10. O-O {[%clk 0:02:57.3]} 10... Nf8 {[%clk 0:02:53.3]} 11.
f3 {[%clk 0:02:56.3]} 11... h6 {[%clk 0:02:53.5]} 12. Bh4 {[%clk 0:02:55.9]}
12... Ne6 {[%clk 0:02:51.6]} 13. Kh1 {[%clk 0:02:54.8]} 13... c5 {[%clk
0:02:22.5]} 14. Bb5 {[%clk 0:02:35.4]} 14... Bd7 {[%clk 0:02:17]} 15. Bxd7
{[%clk 0:02:30.3]} 15... Qxd7 {[%clk 0:02:17.5]} 16. dxc5 {[%clk 0:02:25.8]}
16... Nxc5 {[%clk 0:02:18.4]} 17. Rad1 {[%clk 0:02:20.2]} 17... g5 {[%clk
0:01:50.3]} 18. Bf2 {[%clk 0:02:15.6]} 18... Red8 {[%clk 0:01:08.7]} 19. e4
{[%clk 0:02:08.9]} 19... Qc6 {[%clk 0:00:49.8]} 20. Nd4 {[%clk 0:02:07.8]} 20...
Qc7 {[%clk 0:00:19.2]} 21. Bg3 {[%clk 0:02:01.8]} 21... Qb6 {[%clk 0:00:17.4]}
22. Nf5 {[%clk 0:02:00.3]} 22... Bf8 {[%clk 0:00:17.5]} 23. e5 {[%clk
0:01:50.6]} 23... Nfd7 {[%clk 0:00:14.3]} 24. Nxd5 {[%clk 0:01:46.3]} 24... Qa5
{[%clk 0:00:06.7]} 25. b4 {[%clk 0:01:44.6]} 25... Qa4 {[%clk 0:00:06.7]} 26.
Qb1 {[%clk 0:01:30.8]} 26... Ne6 {[%clk 0:00:06.6]} 27. h4 {[%clk 0:01:18.4]}
27... Nb6 {[%clk 0:00:03.4]} 28. Nf6+ {[%clk 0:01:16.1]} 28... Kh8 {[%clk
0:00:03.7]} 29. hxg5 {[%clk 0:01:08.8]} 29... Nxg5 {[%clk 0:00:02.2]} 30. f4
{[%clk 0:00:54.9]} 30... Ne6 {[%clk 0:00:01.1]} 31. Nxh6 {[%clk 0:00:51.3]} 1-0

[Event "*** Titled Tuesday Blitz"]
[Site "Chess.com"]
[Date "2020.05.05"]
[Round "1"]
[White "wonderfultime"]
[Black "Jeffinho023"]
[Result "1-0"]
[WhiteElo "2916"]
[BlackElo "2457"]
[TimeControl "180+1"]
[EndTime "10:06:26 PDT"]
[Termination "wonderfultime won by resignation"]

1. d4 {[%clk 0:02:58.7]} 1... Nf6 {[%clk 0:02:59.6]} 2. Nf3 {[%clk 0:02:58.5]}
2... d5 {[%clk 0:02:59.5]} 3. Bf4 {[%clk 0:02:58.2]} 3... c6 {[%clk 0:02:59.2]}
4. e3 {[%clk 0:02:58.3]} 4... Bf5 {[%clk 0:02:59.1]} 5. c4 {[%clk 0:02:58.8]}
5... e6 {[%clk 0:02:59]} 6. Nc3 {[%clk 0:02:59.3]} 6... Nbd7 {[%clk 0:02:58.3]}
7. h3 {[%clk 0:02:58.6]} 7... Bb4 {[%clk 0:02:56.7]} 8. Qb3 {[%clk 0:02:57.8]}
8... Qa5 {[%clk 0:02:14.3]} 9. a3 {[%clk 0:02:52]} 9... Bxc3+ {[%clk 0:02:14]}
10. bxc3 {[%clk 0:02:51.9]} 10... O-O {[%clk 0:02:13]} 11. Qb4 {[%clk 0:02:51]}
11... Qxb4 {[%clk 0:02:07.6]} 12. axb4 {[%clk 0:02:38.9]} 12... a6 {[%clk
0:02:07.4]} 13. Be2 {[%clk 0:02:34.1]} 13... h6 {[%clk 0:02:06.7]} 14. c5 {[%clk
0:02:06.8]} 14... Ne4 {[%clk 0:02:05]} 15. Ra3 {[%clk 0:02:06.6]} 15... Rae8
{[%clk 0:01:56.5]} 16. O-O {[%clk 0:01:58.6]} 16... f6 {[%clk 0:01:55.5]} 17.
Bh2 {[%clk 0:01:58.8]} 17... e5 {[%clk 0:01:52.9]} 18. c4 {[%clk 0:01:55.3]}
18... dxc4 {[%clk 0:01:18.2]} 19. Bxc4+ {[%clk 0:01:53.9]} 19... Be6 {[%clk
0:01:18.7]} 20. Bd3 {[%clk 0:01:44.4]} 20... Bd5 {[%clk 0:01:11.4]} 21. Rd1
{[%clk 0:01:39.8]} 21... exd4 {[%clk 0:01:09.4]} 22. Nxd4 {[%clk 0:01:40.7]}
22... Ne5 {[%clk 0:01:07.3]} 23. Bf1 {[%clk 0:01:39.6]} 23... Nc4 {[%clk
0:01:01]} 24. Bxc4 {[%clk 0:01:17.2]} 24... Bxc4 {[%clk 0:01:00.9]} 25. h4
{[%clk 0:01:17.8]} 25... f5 {[%clk 0:00:39.7]} 26. f3 {[%clk 0:01:17]} 26... Nf6
{[%clk 0:00:39.6]} 27. Nxf5 {[%clk 0:01:17.5]} 27... Be6 {[%clk 0:00:14.4]} 28.
Nd6 {[%clk 0:01:16.2]} 28... Rd8 {[%clk 0:00:14.6]} 29. e4 {[%clk 0:01:16.5]}
29... Rd7 {[%clk 0:00:14.6]} 30. Rad3 {[%clk 0:01:14.5]} 30... Rfd8 {[%clk
0:00:14.6]} 31. Be5 {[%clk 0:01:14]} 31... Ne8 {[%clk 0:00:13.7]} 32. Kf2 {[%clk
0:01:13.7]} 32... Nc7 {[%clk 0:00:13.8]} 33. Ke3 {[%clk 0:01:12.1]} 33... Nb5
{[%clk 0:00:13.9]} 34. Nxb7 {[%clk 0:01:05.5]} 34... Rxd3+ {[%clk 0:00:13.9]}
35. Rxd3 {[%clk 0:01:06.4]} 35... Rxd3+ {[%clk 0:00:14.3]} 36. Kxd3 {[%clk
0:01:06.8]} 36... Kf7 {[%clk 0:00:13.5]} 37. Nd8+ {[%clk 0:01:06.4]} 37... Ke7
{[%clk 0:00:12.8]} 38. Nxc6+ {[%clk 0:01:06.4]} 1-0

[Event "*** Titled Tuesday Blitz"]
[Site "Chess.com"]
[Date "2020.05.05"]
[Round "1"]
[White "Chepaschess"]
[Black "CalinGheorghiu"]
[Result "1-0"]
[WhiteElo "2743"]
[BlackElo "2390"]
[TimeControl "180+1"]
[EndTime "10:06:26 PDT"]
[Termination "Chepaschess won by resignation"]

1. d4 {[%clk 0:03:00.9]} 1... Nf6 {[%clk 0:02:57]} 2. c4 {[%clk 0:03:00]} 2...
e6 {[%clk 0:02:56.5]} 3. Nf3 {[%clk 0:02:58.7]} 3... d5 {[%clk 0:02:56.1]} 4. g3
{[%clk 0:02:56.8]} 4... Be7 {[%clk 0:02:55]} 5. Bg2 {[%clk 0:02:56.5]} 5... O-O
{[%clk 0:02:54.8]} 6. O-O {[%clk 0:02:57]} 6... dxc4 {[%clk 0:02:54.2]} 7. Qc2
{[%clk 0:02:57.5]} 7... b6 {[%clk 0:02:53.5]} 8. Bg5 {[%clk 0:02:55.1]} 8... Nd5
{[%clk 0:02:52.8]} 9. Bxe7 {[%clk 0:02:53.7]} 9... Qxe7 {[%clk 0:02:53]} 10. e4
{[%clk 0:02:46.1]} 10... Nb4 {[%clk 0:02:50.4]} 11. Qc3 {[%clk 0:02:45.9]} 11...
b5 {[%clk 0:02:45.5]} 12. a4 {[%clk 0:02:30.4]} 12... c6 {[%clk 0:02:41.7]} 13.
Na3 {[%clk 0:02:21.8]} 13... a6 {[%clk 0:02:35.6]} 14. b3 {[%clk 0:02:01]} 14...
cxb3 {[%clk 0:02:06.4]} 15. Qxb3 {[%clk 0:02:01.9]} 15... bxa4 {[%clk
0:01:53.4]} 16. Qxa4 {[%clk 0:01:59.4]} 16... a5 {[%clk 0:01:43]} 17. Rfc1
{[%clk 0:01:55]} 17... Nd7 {[%clk 0:01:32.9]} 18. Nc4 {[%clk 0:01:50.2]} 18...
Ba6 {[%clk 0:01:12.5]} 19. Nxa5 {[%clk 0:01:36.2]} 19... Bb5 {[%clk 0:01:09.4]}
20. Qa3 {[%clk 0:01:32.8]} 20... Rfb8 {[%clk 0:00:57]} 21. Rab1 {[%clk
0:01:22.8]} 21... Nd5 {[%clk 0:00:36.2]} 22. Qxe7 {[%clk 0:01:11.7]} 22... Nxe7
{[%clk 0:00:37.1]} 23. Ra1 {[%clk 0:00:59.2]} 23... Nb6 {[%clk 0:00:36.5]} 24.
Ne5 {[%clk 0:00:56.2]} 24... Rc8 {[%clk 0:00:33.8]} 25. Nb7 {[%clk 0:00:53.3]}
25... Rxa1 {[%clk 0:00:29]} 26. Rxa1 {[%clk 0:00:54.2]} 26... Nc4 {[%clk
0:00:27.6]} 27. Nxc4 {[%clk 0:00:54.1]} 27... Bxc4 {[%clk 0:00:26.8]} 28. Nd6
{[%clk 0:00:54.8]} 28... c5 {[%clk 0:00:15.9]} 29. dxc5 {[%clk 0:00:45.1]} 1-0

[Event "*** Titled Tuesday Blitz"]
[Site "Chess.com"]
[Date "2020.05.05"]
[Round "1"]
[White "KaterinaMiroshnik"]
[Black "Alexander_Donchenko"]
[Result "0-1"]
[WhiteElo "2421"]
[BlackElo "2809"]
[TimeControl "180+1"]
[EndTime "10:06:27 PDT"]
[Termination "Alexander_Donchenko won by resignation"]

1. d3 {[%clk 0:03:00.4]} 1... d5 {[%clk 0:02:59.6]} 2. Nd2 {[%clk 0:03:01.3]}
2... e5 {[%clk 0:02:59.5]} 3. Ngf3 {[%clk 0:03:02.2]} 3... Nc6 {[%clk
0:02:58.9]} 4. e4 {[%clk 0:03:02.8]} 4... Nf6 {[%clk 0:02:58.9]} 5. Be2 {[%clk
0:03:03.2]} 5... Bc5 {[%clk 0:02:58.5]} 6. O-O {[%clk 0:03:03.6]} 6... O-O
{[%clk 0:02:58.2]} 7. c3 {[%clk 0:03:03.8]} 7... h6 {[%clk 0:02:56.3]} 8. Qc2
{[%clk 0:03:03.9]} 8... Be6 {[%clk 0:02:53.4]} 9. b3 {[%clk 0:03:04.2]} 9... a5
{[%clk 0:02:52.5]} 10. Bb2 {[%clk 0:03:03.8]} 10... Qe7 {[%clk 0:02:51.2]} 11.
a3 {[%clk 0:03:04.1]} 11... Bb6 {[%clk 0:02:43.7]} 12. Rae1 {[%clk 0:02:53.6]}
12... Rfd8 {[%clk 0:02:39.2]} 13. Rd1 {[%clk 0:02:52.6]} 13... Rd7 {[%clk
0:02:32.1]} 14. h3 {[%clk 0:02:41.3]} 14... Rad8 {[%clk 0:02:31]} 15. Rfe1
{[%clk 0:02:41.4]} 15... dxe4 {[%clk 0:02:28.3]} 16. dxe4 {[%clk 0:02:40.6]}
16... Qc5 {[%clk 0:02:23.5]} 17. Rf1 {[%clk 0:02:40.7]} 17... Nh5 {[%clk
0:02:22.3]} 18. Nc4 {[%clk 0:02:11.4]} 18... Rxd1 {[%clk 0:02:13.5]} 19. Bxd1
{[%clk 0:02:09.1]} 19... Bxc4 {[%clk 0:02:11.8]} 20. bxc4 {[%clk 0:02:10]} 20...
Nf4 {[%clk 0:01:58.5]} 21. Nd2 {[%clk 0:01:56.7]} 21... Qd6 {[%clk 0:01:41.3]}
22. Nf3 {[%clk 0:01:49]} 22... Ne7 {[%clk 0:01:29.7]} 23. Bc1 {[%clk 0:01:45.8]}
23... Neg6 {[%clk 0:01:23.1]} 24. Be2 {[%clk 0:01:34.1]} 24... Qc5 {[%clk
0:01:13.2]} 25. Be3 {[%clk 0:01:27.5]} 25... Qxa3 {[%clk 0:01:12.7]} 26. Bxb6
{[%clk 0:01:26.1]} 26... cxb6 {[%clk 0:01:13.6]} 27. Rb1 {[%clk 0:01:19.1]}
27... Qxc3 {[%clk 0:01:10.4]} 28. Qa2 {[%clk 0:01:03.2]} 28... Rd6 {[%clk
0:01:02.9]} 29. c5 {[%clk 0:00:57.7]} 29... Qxc5 {[%clk 0:01:01.3]} 30. Bf1
{[%clk 0:00:53.3]} 30... Rf6 {[%clk 0:00:54.7]} 31. Rb5 {[%clk 0:00:50.3]} 31...
Qd6 {[%clk 0:00:46.6]} 32. Nd2 {[%clk 0:00:43]} 32... Qd4 {[%clk 0:00:42.7]} 33.
Nb3 {[%clk 0:00:40.3]} 33... Qxe4 {[%clk 0:00:40.9]} 34. Rxb6 {[%clk 0:00:35.4]}
34... Rxb6 {[%clk 0:00:40]} 0-1

[Event "*** Titled Tuesday Blitz"]
[Site "Chess.com"]
[Date "2020.05.05"]
[Round "1"]
[White "PawnEatingZombie"]
[Black "Mizner"]
[Result "0-1"]
[WhiteElo "2153"]
[BlackElo "2523"]
[TimeControl "180+1"]
[EndTime "10:06:27 PDT"]
[Termination "Mizner won on time"]

1. d4 {[%clk 0:02:57.6]} 1... d5 {[%clk 0:02:59.6]} 2. c4 {[%clk 0:02:57.4]}
2... e6 {[%clk 0:02:59.9]} 3. Nc3 {[%clk 0:02:56.9]} 3... Nf6 {[%clk 0:03:00.1]}
4. cxd5 {[%clk 0:02:56.3]} 4... Nxd5 {[%clk 0:03:01]} 5. e4 {[%clk 0:02:55.4]}
5... Nxc3 {[%clk 0:03:01.2]} 6. bxc3 {[%clk 0:02:56.3]} 6... c5 {[%clk
0:03:01.8]} 7. Rb1 {[%clk 0:02:56.8]} 7... cxd4 {[%clk 0:03:01.2]} 8. cxd4
{[%clk 0:02:56.5]} 8... Nc6 {[%clk 0:03:02.1]} 9. d5 {[%clk 0:02:17.5]} 9...
exd5 {[%clk 0:02:38.3]} 10. exd5 {[%clk 0:02:18.4]} 10... Bb4+ {[%clk
0:02:29.7]} 11. Rxb4 {[%clk 0:02:12.3]} 11... Qe7+ {[%clk 0:02:26.4]} 12. Be2
{[%clk 0:01:36.5]} 12... Nxb4 {[%clk 0:02:12.9]} 13. a3 {[%clk 0:00:48.3]} 13...
Na6 {[%clk 0:01:57.6]} 14. Nf3 {[%clk 0:00:36.8]} 14... O-O {[%clk 0:01:51.9]}
15. O-O {[%clk 0:00:36.6]} 15... Qd6 {[%clk 0:01:22.2]} 16. Bb2 {[%clk
0:00:34.4]} 16... Nc5 {[%clk 0:01:08.3]} 17. Qd4 {[%clk 0:00:33.2]} 17... f6
{[%clk 0:01:07.9]} 18. Bc4 {[%clk 0:00:27.2]} 18... Bd7 {[%clk 0:01:00]} 19. Qh4
{[%clk 0:00:07.6]} 19... Rae8 {[%clk 0:00:53.8]} 20. Bd4 {[%clk 0:00:05.4]}
20... b5 {[%clk 0:00:38.3]} 21. Ba2 {[%clk 0:00:03.2]} 21... Bf5 {[%clk
0:00:33.9]} 22. Bxc5 {[%clk 0:00:02]} 22... Qxc5 {[%clk 0:00:33.8]} 23. d6+
{[%clk 0:00:01.5]} 23... Be6 {[%clk 0:00:31.5]} 0-1

[Event "*** Titled Tuesday Blitz"]
[Site "Chess.com"]
[Date "2020.05.05"]
[Round "1"]
[White "jonaszmb"]
[Black "ZverevLev"]
[Result "1-0"]
[WhiteElo "2491"]
[BlackElo "2053"]
[TimeControl "180+1"]
[EndTime "10:06:29 PDT"]
[Termination "jonaszmb won by resignation"]

1. d4 {[%clk 0:03:00.9]} 1... Nf6 {[%clk 0:02:57.2]} 2. c4 {[%clk 0:03:00.8]}
2... e6 {[%clk 0:02:54.7]} 3. Nf3 {[%clk 0:03:01]} 3... d5 {[%clk 0:02:52.2]} 4.
g3 {[%clk 0:03:01.3]} 4... dxc4 {[%clk 0:02:50]} 5. Bg2 {[%clk 0:03:01.4]} 5...
Be7 {[%clk 0:02:34.3]} 6. O-O {[%clk 0:03:00.2]} 6... O-O {[%clk 0:02:27.7]} 7.
Nc3 {[%clk 0:03:00.4]} 7... Nc6 {[%clk 0:02:21.9]} 8. e4 {[%clk 0:02:59.4]} 8...
Rb8 {[%clk 0:02:10.8]} 9. Qe2 {[%clk 0:02:49.1]} 9... b5 {[%clk 0:02:01.5]} 10.
Rd1 {[%clk 0:02:44]} 10... Nb4 {[%clk 0:01:57.7]} 11. Ne5 {[%clk 0:02:28.9]}
11... Bb7 {[%clk 0:01:50.8]} 12. Nxb5 {[%clk 0:02:15.9]} 12... Bxe4 {[%clk
0:01:45.7]} 13. Bxe4 {[%clk 0:02:14.9]} 13... Nxe4 {[%clk 0:01:42.1]} 14. Nxa7
{[%clk 0:02:05.3]} 14... Qd5 {[%clk 0:01:36.8]} 15. Qxc4 {[%clk 0:02:02.1]}
15... Qxc4 {[%clk 0:01:34]} 16. Nxc4 {[%clk 0:02:03]} 16... Nc2 {[%clk
0:01:33.8]} 17. Rb1 {[%clk 0:01:58.8]} 17... Nc3 {[%clk 0:01:34.1]} 18. Nc6
{[%clk 0:01:41.8]} 18... Nxd1 {[%clk 0:01:31]} 19. Nxe7+ {[%clk 0:01:40.8]}
19... Kh8 {[%clk 0:01:27.7]} 20. Bd2 {[%clk 0:01:37.6]} 20... Nxd4 {[%clk
0:01:06.1]} 21. Rxd1 {[%clk 0:01:34.9]} 21... Rfe8 {[%clk 0:01:02.5]} 22. Be3
{[%clk 0:01:17.3]} 22... Rxe7 {[%clk 0:00:48.2]} 23. Bxd4 {[%clk 0:01:14.8]}
23... f6 {[%clk 0:00:44.7]} 24. Bc3 {[%clk 0:01:11.2]} 24... e5 {[%clk
0:00:41.2]} 25. a4 {[%clk 0:01:10.9]} 25... c5 {[%clk 0:00:32.8]} 26. a5 {[%clk
0:01:10.3]} 26... h5 {[%clk 0:00:28.2]} 27. Nb6 {[%clk 0:01:01.3]} 27... g5
{[%clk 0:00:26.4]} 28. Kg2 {[%clk 0:00:56.2]} 28... Kg7 {[%clk 0:00:22.5]} 29.
Rd6 {[%clk 0:00:54.5]} 29... Kf7 {[%clk 0:00:16.8]} 30. Nd5 {[%clk 0:00:53.9]}
30... Re6 {[%clk 0:00:15.1]} 31. Rd7+ {[%clk 0:00:54.2]} 31... Kg8 {[%clk
0:00:12.3]} 1-0